[Event "Titled Tuesday Blitz April 11 Early 2023"]
[White "Gheorghiu, Calin"]
[Black "Kaidanov, Gregory"]
[WhiteFideId "1200305"]
[BlackFideId "2008564"]
[WhiteElo "2223"]
[BlackElo "2547"]
[Result "1/2-1/2"]
[Round "02"]
[TimeControl "180+2"]
[Date "2023.04.11"]
[WhiteClock "0:00:12"]
[BlackClock "0:00:23"]

1. e4 {[%clk 0:02:56]}  e5 {[%clk 0:03:00]} 2. Nf3 {[%clk 0:02:56]}  Nc6 {[%clk 0:03:00]} 3. Bb5 {[%clk 0:02:52]}  a6 {[%clk 0:02:59]} 4. Ba4 {[%clk 0:02:49]}  Nf6 {[%clk 0:02:59]} 5. O-O {[%clk 0:02:48]}  Nxe4 {[%clk 0:02:58]} 6. Re1 {[%clk 0:02:44]}  Nc5 {[%clk 0:02:57]} 7. Bxc6 {[%clk 0:02:37]}  dxc6 {[%clk 0:02:56]} 8. Nxe5 {[%clk 0:02:37]}  Be7 {[%clk 0:02:56]} 9. d4 {[%clk 0:02:35]}  Ne6 {[%clk 0:02:56]} 10. c3 {[%clk 0:02:34]}  O-O {[%clk 0:02:55]} 11. Be3 {[%clk 0:02:19]}  Bd6 {[%clk 0:02:53]} 12. Nd2 {[%clk 0:02:18]}  c5 {[%clk 0:02:48]} 13. Ne4 {[%clk 0:02:11]}  cxd4 {[%clk 0:02:47]} 14. cxd4 {[%clk 0:02:10]}  Bb4 {[%clk 0:02:36]} 15. Nc3 {[%clk 0:02:05]}  Qh4 {[%clk 0:02:17]} 16. Qb3 {[%clk 0:01:46]}  Bd6 {[%clk 0:02:16]} 17. Nf3 {[%clk 0:01:38]}  Qh5 {[%clk 0:02:14]} 18. Ne4 {[%clk 0:01:38]}  b5 {[%clk 0:01:49]} 19. d5 {[%clk 0:01:33]}  Nd8 {[%clk 0:01:43]} 20. Nxd6 {[%clk 0:01:21]}  cxd6 {[%clk 0:01:43]} 21. Bf4 {[%clk 0:01:21]}  Qg6 {[%clk 0:01:40]} 22. Qb4 {[%clk 0:01:09]}  Nb7 {[%clk 0:01:39]} 23. Bg3 {[%clk 0:01:05]}  Bd7 {[%clk 0:01:31]} 24. Nd4 {[%clk 0:01:05]}  Rac8 {[%clk 0:01:27]} 25. Rac1 {[%clk 0:00:55]}  Qg5 {[%clk 0:01:27]} 26. Nc6 {[%clk 0:00:51]}  Rfe8 {[%clk 0:01:18]} 27. Qf4 {[%clk 0:00:40]}  Qxd5 {[%clk 0:01:12]} 28. Ne7+ {[%clk 0:00:35]}  Rxe7 {[%clk 0:01:12]} 29. Rxe7 {[%clk 0:00:36]}  g5 {[%clk 0:00:47]} 30. Rxc8+ {[%clk 0:00:18]}  Bxc8 {[%clk 0:00:46]} 31. Qe3 {[%clk 0:00:15]}  Be6 {[%clk 0:00:40]} 32. h4 {[%clk 0:00:14]}  gxh4 {[%clk 0:00:35]} 33. Bxh4 {[%clk 0:00:14]}  Nc5 {[%clk 0:00:34]} 34. Bf6 {[%clk 0:00:13]}  Qd1+ {[%clk 0:00:31]} 35. Kh2 {[%clk 0:00:13]}  Qh5+ {[%clk 0:00:32]} 36. Kg1 {[%clk 0:00:12]}  Qd1+ {[%clk 0:00:32]} 37. Kh2 {[%clk 0:00:12]}  Qh5+ {[%clk 0:00:32]} 38. Kg1 {[%clk 0:00:12]}  Qd1+ {[%clk 0:00:23]} 1/2-1/2


[Site "https://www.chess.com"]

[Event "Titled Tuesday Blitz April 11 Early 2023"]
[White "Koridze, Lile"]
[Black "KRUMMEL2008"]
[WhiteFideId "13612514"]
[WhiteElo "2047"]
[BlackElo "2606"]
[Result "1-0"]
[Round "02"]
[TimeControl "180+2"]
[Date "2023.04.11"]
[WhiteClock "0:00:13"]
[BlackClock "0:00:02"]

1. d4 {[%clk 0:03:00]}  Nf6 {[%clk 0:03:00]} 2. c4 {[%clk 0:03:01]}  g6 {[%clk 0:03:00]} 3. Nc3 {[%clk 0:03:01]}  Bg7 {[%clk 0:03:01]} 4. e4 {[%clk 0:03:01]}  d6 {[%clk 0:03:01]} 5. Nf3 {[%clk 0:03:02]}  O-O {[%clk 0:03:02]} 6. Be2 {[%clk 0:03:02]}  Na6 {[%clk 0:03:02]} 7. Bf4 {[%clk 0:03:02]}  Nh5 {[%clk 0:02:17]} 8. Be3 {[%clk 0:03:01]}  e5 {[%clk 0:02:04]} 9. O-O {[%clk 0:03:00]}  Nf4 {[%clk 0:01:58]} 10. a3 {[%clk 0:02:53]}  Nxe2+ {[%clk 0:01:54]} 11. Qxe2 {[%clk 0:02:53]}  Bg4 {[%clk 0:01:54]} 12. Rad1 {[%clk 0:02:53]}  f5 {[%clk 0:01:42]} 13. dxe5 {[%clk 0:02:47]}  f4 {[%clk 0:01:42]} 14. Bc1 {[%clk 0:02:44]}  Bxe5 {[%clk 0:01:40]} 15. h3 {[%clk 0:02:43]}  Bxf3 {[%clk 0:01:28]} 16. Qxf3 {[%clk 0:02:43]}  Nc5 {[%clk 0:01:29]} 17. b4 {[%clk 0:02:33]}  Ne6 {[%clk 0:01:29]} 18. Ne2 {[%clk 0:02:32]}  Qh4 {[%clk 0:01:24]} 19. Qg4 {[%clk 0:02:25]}  Qf6 {[%clk 0:01:23]} 20. Qf3 {[%clk 0:01:57]}  Ng5 {[%clk 0:01:16]} 21. Qb3 {[%clk 0:01:57]}  f3 {[%clk 0:01:11]} 22. Ng3 {[%clk 0:01:58]}  Rf7 {[%clk 0:00:52]} 23. c5 {[%clk 0:01:54]}  Rf8 {[%clk 0:00:52]} 24. cxd6 {[%clk 0:01:40]}  cxd6 {[%clk 0:00:53]} 25. Rd3 {[%clk 0:01:36]}  Kh8 {[%clk 0:00:51]} 26. Bxg5 {[%clk 0:01:35]}  Qxg5 {[%clk 0:00:50]} 27. Qd5 {[%clk 0:01:24]}  Qh4 {[%clk 0:00:18]} 28. Nh1 {[%clk 0:01:13]}  fxg2 {[%clk 0:00:18]} 29. Kxg2 {[%clk 0:01:13]}  Qf4 {[%clk 0:00:16]} 30. Ng3 {[%clk 0:01:12]}  Qh4 {[%clk 0:00:12]} 31. Ne2 {[%clk 0:00:56]}  Qh5 {[%clk 0:00:11]} 32. Ng3 {[%clk 0:00:38]}  Qh4 {[%clk 0:00:11]} 33. Nh1 {[%clk 0:00:35]}  Rf4 {[%clk 0:00:08]} 34. Ng3 {[%clk 0:00:30]}  Qg5 {[%clk 0:00:04]} 35. Qe6 {[%clk 0:00:25]}  R4f6 {[%clk 0:00:04]} 36. Qg4 {[%clk 0:00:23]}  Qh6 {[%clk 0:00:04]} 37. Qd7 {[%clk 0:00:18]}  R6f7 {[%clk 0:00:03]} 38. Qe6 {[%clk 0:00:17]}  Rf6 {[%clk 0:00:04]} 39. Qg4 {[%clk 0:00:17]}  Rf4 {[%clk 0:00:04]} 40. Qe6 {[%clk 0:00:17]}  Rh4 {[%clk 0:00:03]} 41. f3 {[%clk 0:00:13]}  Qg5 {[%clk 0:00:02]} 42. f4 {[%clk 0:00:13]}  Bxf4 {[%clk 0:00:02]} 43. Rdf3 {[%clk 0:00:13]} 1-0


[Site "https://www.chess.com"]

[Event "Titled Tuesday Blitz April 11 Early 2023"]
[White "Carre, Sylvain"]
[Black "UnknownMagician"]
[WhiteFideId "642118"]
[WhiteElo "2105"]
[BlackElo "2603"]
[Result "1-0"]
[Round "02"]
[TimeControl "180+2"]
[Date "2023.04.11"]
[WhiteClock "0:02:23"]
[BlackClock "0:01:16"]

1. d4 {[%clk 0:03:00]}  Nf6 {[%clk 0:02:59]} 2. Bf4 {[%clk 0:03:00]}  d5 {[%clk 0:02:56]} 3. e3 {[%clk 0:03:00]}  c5 {[%clk 0:02:56]} 4. c3 {[%clk 0:03:00]}  Nc6 {[%clk 0:02:56]} 5. Nd2 {[%clk 0:03:01]}  cxd4 {[%clk 0:02:54]} 6. exd4 {[%clk 0:03:00]}  Bf5 {[%clk 0:02:54]} 7. Ngf3 {[%clk 0:03:00]}  e6 {[%clk 0:02:51]} 8. Qb3 {[%clk 0:03:01]}  Qc8 {[%clk 0:02:46]} 9. Ne5 {[%clk 0:02:58]}  Be7 {[%clk 0:02:39]} 10. Ndf3 {[%clk 0:02:56]}  O-O {[%clk 0:02:38]} 11. Bd3 {[%clk 0:02:56]}  Ne4 {[%clk 0:02:30]} 12. O-O {[%clk 0:02:54]}  f6 {[%clk 0:02:30]} 13. Nxc6 {[%clk 0:02:54]}  bxc6 {[%clk 0:02:30]} 14. Nh4 {[%clk 0:02:39]}  Nd2 {[%clk 0:02:26]} 15. Nxf5 {[%clk 0:02:30]}  Nxb3 {[%clk 0:02:23]} 16. Nxe7+ {[%clk 0:02:30]}  Kf7 {[%clk 0:02:07]} 17. Nxc8 {[%clk 0:02:31]}  Nxa1 {[%clk 0:02:07]} 18. Nd6+ {[%clk 0:02:28]}  Ke7 {[%clk 0:02:07]} 19. Rxa1 {[%clk 0:02:23]}  Rab8 {[%clk 0:01:20]} 20. Nf5+ {[%clk 0:02:22]}  exf5 {[%clk 0:01:18]} 21. Bxb8 {[%clk 0:02:23]}  Rxb8 {[%clk 0:01:16]} 22. b4 {[%clk 0:02:23]} 1-0


[Site "https://www.chess.com"]

[Event "Titled Tuesday Blitz April 11 Early 2023"]
[White "Sliwicki, Damian"]
[Black "Pavlov, Danila"]
[WhiteFideId "1127128"]
[BlackFideId "34126594"]
[WhiteElo "2030"]
[BlackElo "2336"]
[Result "1-0"]
[Round "02"]
[TimeControl "180+2"]
[Date "2023.04.11"]
[WhiteClock "0:00:58"]
[BlackClock "0:00:26"]

1. e4 {[%clk 0:02:59]}  e6 {[%clk 0:02:21]} 2. Qe2 {[%clk 0:02:58]}  c5 {[%clk 0:02:20]} 3. b3 {[%clk 0:02:53]}  Nc6 {[%clk 0:02:19]} 4. Nf3 {[%clk 0:02:51]}  Be7 {[%clk 0:02:18]} 5. Bb2 {[%clk 0:02:51]}  Nf6 {[%clk 0:02:15]} 6. g4 {[%clk 0:02:48]}  h6 {[%clk 0:02:06]} 7. Rg1 {[%clk 0:02:45]}  d5 {[%clk 0:02:04]} 8. exd5 {[%clk 0:02:08]}  exd5 {[%clk 0:02:01]} 9. Bxf6 {[%clk 0:02:04]}  gxf6 {[%clk 0:02:01]} 10. Nc3 {[%clk 0:02:03]}  Be6 {[%clk 0:01:58]} 11. O-O-O {[%clk 0:01:41]}  Qa5 {[%clk 0:01:51]} 12. Kb2 {[%clk 0:01:36]}  d4 {[%clk 0:01:48]} 13. Ne4 {[%clk 0:01:30]}  O-O-O {[%clk 0:01:45]} 14. Qb5 {[%clk 0:01:28]}  Qc7 {[%clk 0:00:59]} 15. Nxc5 {[%clk 0:01:24]}  Bxc5 {[%clk 0:00:59]} 16. Qxc5 {[%clk 0:01:23]}  Rd5 {[%clk 0:01:00]} 17. Qc4 {[%clk 0:01:16]}  Rf5 {[%clk 0:00:59]} 18. Qe2 {[%clk 0:01:07]}  Ra5 {[%clk 0:00:26]} 19. a3 {[%clk 0:00:58]} 1-0


[Site "https://www.chess.com"]

[Event "Titled Tuesday Blitz April 11 Early 2023"]
[White "Petre, Nad-Titus"]
[Black "Mogirzan, Matei-Valeriu"]
[WhiteFideId "1204165"]
[BlackFideId "1257455"]
[WhiteElo "2354"]
[BlackElo "1733"]
[Result "1-0"]
[Round "02"]
[TimeControl "180+2"]
[Date "2023.04.11"]
[WhiteClock "0:00:11"]
[BlackClock "0:00:02"]

1. e4 {[%clk 0:03:00]}  e5 {[%clk 0:02:58]} 2. Nf3 {[%clk 0:03:00]}  Nf6 {[%clk 0:02:59]} 3. Nxe5 {[%clk 0:02:55]}  Nc6 {[%clk 0:02:58]} 4. Nxc6 {[%clk 0:02:52]}  dxc6 {[%clk 0:02:59]} 5. d3 {[%clk 0:02:50]}  Bc5 {[%clk 0:02:59]} 6. Be2 {[%clk 0:02:42]}  h5 {[%clk 0:02:59]} 7. h3 {[%clk 0:02:28]}  Qd4 {[%clk 0:02:58]} 8. Rf1 {[%clk 0:02:26]}  Be6 {[%clk 0:02:51]} 9. c3 {[%clk 0:02:24]}  Qd7 {[%clk 0:02:51]} 10. Bg5 {[%clk 0:02:22]}  Nh7 {[%clk 0:02:32]} 11. Be3 {[%clk 0:02:01]}  Be7 {[%clk 0:02:16]} 12. Nd2 {[%clk 0:01:56]}  c5 {[%clk 0:02:10]} 13. Qc2 {[%clk 0:01:51]}  O-O-O {[%clk 0:01:57]} 14. O-O-O {[%clk 0:01:51]}  f5 {[%clk 0:01:36]} 15. Bxh5 {[%clk 0:01:28]}  Nf6 {[%clk 0:01:17]} 16. Bf3 {[%clk 0:01:14]}  Qxd3 {[%clk 0:00:51]} 17. Qxd3 {[%clk 0:01:02]}  Rxd3 {[%clk 0:00:52]} 18. exf5 {[%clk 0:00:58]}  Bxf5 {[%clk 0:00:48]} 19. Nb3 {[%clk 0:00:58]}  c4 {[%clk 0:00:34]} 20. Nd4 {[%clk 0:00:55]}  Bg6 {[%clk 0:00:25]} 21. Be2 {[%clk 0:00:53]}  c5 {[%clk 0:00:17]} 22. Ne6 {[%clk 0:00:46]}  Nd5 {[%clk 0:00:07]} 23. Bxd3 {[%clk 0:00:40]}  cxd3 {[%clk 0:00:07]} 24. Bxc5 {[%clk 0:00:33]}  Bf6 {[%clk 0:00:05]} 25. Bd4 {[%clk 0:00:28]}  Re8 {[%clk 0:00:03]} 26. Bxf6 {[%clk 0:00:27]}  Rxe6 {[%clk 0:00:03]} 27. Bxg7 {[%clk 0:00:26]}  Re2 {[%clk 0:00:02]} 28. Rd2 {[%clk 0:00:27]}  Nf4 {[%clk 0:00:03]} 29. g3 {[%clk 0:00:21]}  Ng2 {[%clk 0:00:03]} 30. Rfd1 {[%clk 0:00:15]}  Ne1 {[%clk 0:00:03]} 31. Bh6 {[%clk 0:00:11]}  Nf3 {[%clk 0:00:03]} 32. Rxd3 {[%clk 0:00:10]}  Bxd3 {[%clk 0:00:04]} 33. Rxd3 {[%clk 0:00:11]}  Rxf2 {[%clk 0:00:03]} 34. Bf4 {[%clk 0:00:10]}  Rf1+ {[%clk 0:00:03]} 35. Kc2 {[%clk 0:00:10]}  Ne1+ {[%clk 0:00:03]} 36. Kd2 {[%clk 0:00:10]}  Nxd3 {[%clk 0:00:03]} 37. Kxd3 {[%clk 0:00:11]}  Rf2 {[%clk 0:00:04]} 38. b4 {[%clk 0:00:11]}  Rxa2 {[%clk 0:00:04]} 39. h4 {[%clk 0:00:12]}  Rg2 {[%clk 0:00:04]} 40. Kc4 {[%clk 0:00:13]}  Kd7 {[%clk 0:00:04]} 41. h5 {[%clk 0:00:11]}  Kc6 {[%clk 0:00:04]} 42. h6 {[%clk 0:00:12]}  b5+ {[%clk 0:00:04]} 43. Kd4 {[%clk 0:00:13]}  Rh2 {[%clk 0:00:04]} 44. Ke4 {[%clk 0:00:12]}  a5 {[%clk 0:00:03]} 45. bxa5 {[%clk 0:00:12]}  Kb7 {[%clk 0:00:01]} 46. Kf5 {[%clk 0:00:12]}  Ka6 {[%clk 0:00:01]} 47. Kg6 {[%clk 0:00:12]}  Kxa5 {[%clk 0:00:02]} 48. h7 {[%clk 0:00:12]}  b4 {[%clk 0:00:02]} 49. cxb4+ {[%clk 0:00:12]}  Kxb4 {[%clk 0:00:02]} 50. Bh6 {[%clk 0:00:13]}  Kb3 {[%clk 0:00:01]} 51. h8=Q {[%clk 0:00:12]}  Rc2 {[%clk 0:00:02]} 52. Qb8+ {[%clk 0:00:12]}  Ka2 {[%clk 0:00:02]} 53. Qa7+ {[%clk 0:00:12]}  Kb2 {[%clk 0:00:02]} 54. Qb6+ {[%clk 0:00:12]}  Ka2 {[%clk 0:00:02]} 55. Qa5+ {[%clk 0:00:12]}  Kb3 {[%clk 0:00:02]} 56. Qb5+ {[%clk 0:00:12]}  Ka3 {[%clk 0:00:02]} 57. Bf8+ {[%clk 0:00:12]}  Ka2 {[%clk 0:00:02]} 58. Qa4+ {[%clk 0:00:12]}  Kb1 {[%clk 0:00:03]} 59. Qb3+ {[%clk 0:00:12]}  Kc1 {[%clk 0:00:02]} 60. Bh6+ {[%clk 0:00:11]}  Kd1 {[%clk 0:00:02]} 61. Qb1+ {[%clk 0:00:11]} 1-0


[Site "https://www.chess.com"]

[Event "Titled Tuesday Blitz April 11 Early 2023"]
[White "Horak, Martin"]
[Black "Jarocka, Liwia"]
[WhiteFideId "367095"]
[BlackFideId "21807558"]
[WhiteElo "2091"]
[BlackElo "2013"]
[Result "1-0"]
[Round "02"]
[TimeControl "180+2"]
[Date "2023.04.11"]
[WhiteClock "0:00:08"]
[BlackClock "0:00:14"]

1. e4 {[%clk 0:03:00]}  e6 {[%clk 0:02:57]} 2. Nf3 {[%clk 0:03:00]}  d5 {[%clk 0:02:57]} 3. e5 {[%clk 0:03:01]}  c5 {[%clk 0:02:57]} 4. b4 {[%clk 0:03:01]}  cxb4 {[%clk 0:02:56]} 5. a3 {[%clk 0:03:01]}  bxa3 {[%clk 0:02:53]} 6. d4 {[%clk 0:03:01]}  Nc6 {[%clk 0:02:52]} 7. c3 {[%clk 0:03:01]}  f6 {[%clk 0:02:50]} 8. Bd3 {[%clk 0:03:01]}  fxe5 {[%clk 0:02:48]} 9. dxe5 {[%clk 0:03:02]}  Nge7 {[%clk 0:02:42]} 10. Bxa3 {[%clk 0:02:57]}  Nf5 {[%clk 0:02:40]} 11. Bxf8 {[%clk 0:02:56]}  Rxf8 {[%clk 0:02:38]} 12. O-O {[%clk 0:02:56]}  g6 {[%clk 0:02:35]} 13. Na3 {[%clk 0:02:53]}  a6 {[%clk 0:02:22]} 14. Nb5 {[%clk 0:02:52]}  Bd7 {[%clk 0:02:20]} 15. Nbd4 {[%clk 0:02:46]}  Nh4 {[%clk 0:02:11]} 16. Nxh4 {[%clk 0:02:37]}  Qxh4 {[%clk 0:02:10]} 17. g3 {[%clk 0:02:38]}  Qe7 {[%clk 0:02:08]} 18. Qd2 {[%clk 0:02:11]}  Rc8 {[%clk 0:01:44]} 19. f4 {[%clk 0:01:59]}  Qc5 {[%clk 0:01:40]} 20. Kg2 {[%clk 0:01:59]}  Kd8 {[%clk 0:01:34]} 21. Nf3 {[%clk 0:01:43]}  Ne7 {[%clk 0:01:23]} 22. Rac1 {[%clk 0:01:38]}  b5 {[%clk 0:01:15]} 23. Rc2 {[%clk 0:01:24]}  Rc7 {[%clk 0:01:10]} 24. Ra1 {[%clk 0:01:24]}  Bc8 {[%clk 0:01:05]} 25. h4 {[%clk 0:01:16]}  Nf5 {[%clk 0:01:01]} 26. Bxf5 {[%clk 0:01:13]}  gxf5 {[%clk 0:01:01]} 27. Nd4 {[%clk 0:01:11]}  Rg8 {[%clk 0:00:58]} 28. Qe3 {[%clk 0:00:57]}  Ke7 {[%clk 0:00:56]} 29. h5 {[%clk 0:00:50]}  Rg4 {[%clk 0:00:54]} 30. Rf1 {[%clk 0:00:45]}  Bb7 {[%clk 0:00:51]} 31. Qd3 {[%clk 0:00:32]}  Qc4 {[%clk 0:00:49]} 32. Qe3 {[%clk 0:00:30]}  h6 {[%clk 0:00:45]} 33. Rf3 {[%clk 0:00:28]}  a5 {[%clk 0:00:44]} 34. Rb2 {[%clk 0:00:25]}  b4 {[%clk 0:00:40]} 35. cxb4 {[%clk 0:00:23]}  axb4 {[%clk 0:00:40]} 36. Rc2 {[%clk 0:00:20]}  Qxc2+ {[%clk 0:00:39]} 37. Nxc2 {[%clk 0:00:21]}  Rxc2+ {[%clk 0:00:39]} 38. Kh3 {[%clk 0:00:18]}  Rc3 {[%clk 0:00:36]} 39. Qe2 {[%clk 0:00:14]}  Ba6 {[%clk 0:00:33]} 40. Qd1 {[%clk 0:00:13]}  Rxf3 {[%clk 0:00:25]} 41. Qxf3 {[%clk 0:00:13]}  Bc4 {[%clk 0:00:25]} 42. Qe3 {[%clk 0:00:12]}  b3 {[%clk 0:00:24]} 43. Qa7+ {[%clk 0:00:13]}  Ke8 {[%clk 0:00:24]} 44. Qb8+ {[%clk 0:00:13]}  Ke7 {[%clk 0:00:24]} 45. Qd6+ {[%clk 0:00:14]}  Kf7 {[%clk 0:00:25]} 46. Qd7+ {[%clk 0:00:14]}  Kf8 {[%clk 0:00:24]} 47. Qxe6 {[%clk 0:00:13]}  Rg7 {[%clk 0:00:24]} 48. Qd6+ {[%clk 0:00:11]}  Kg8 {[%clk 0:00:24]} 49. e6 {[%clk 0:00:09]}  b2 {[%clk 0:00:24]} 50. Qb8+ {[%clk 0:00:09]}  Kh7 {[%clk 0:00:23]} 51. Qxb2 {[%clk 0:00:10]}  Re7 {[%clk 0:00:20]} 52. Qf6 {[%clk 0:00:10]}  Rc7 {[%clk 0:00:14]} 53. e7 {[%clk 0:00:10]}  Bb5 {[%clk 0:00:14]} 54. Qg6+ {[%clk 0:00:07]}  Kh8 {[%clk 0:00:14]} 55. e8=Q+ {[%clk 0:00:08]} 1-0


[Site "https://www.chess.com"]

[Event "Titled Tuesday Blitz April 11 Early 2023"]
[White "Fuzesabonyilaci"]
[Black "Berezin, Viktor"]
[BlackFideId "14107872"]
[WhiteElo "2341"]
[BlackElo "2310"]
[Result "0-1"]
[Round "02"]
[TimeControl "180+2"]
[Date "2023.04.11"]
[WhiteClock "0:00:03"]
[BlackClock "0:00:43"]

1. Nf3 {[%clk 0:03:00]}  Nf6 {[%clk 0:02:58]} 2. b4 {[%clk 0:02:53]}  g6 {[%clk 0:02:59]} 3. Bb2 {[%clk 0:02:54]}  Bg7 {[%clk 0:02:59]} 4. g3 {[%clk 0:02:54]}  O-O {[%clk 0:03:00]} 5. Bg2 {[%clk 0:02:54]}  d6 {[%clk 0:03:00]} 6. O-O {[%clk 0:02:55]}  c6 {[%clk 0:03:01]} 7. c4 {[%clk 0:02:53]}  a5 {[%clk 0:03:00]} 8. a3 {[%clk 0:02:53]}  Na6 {[%clk 0:02:58]} 9. Qb3 {[%clk 0:02:51]}  Qb6 {[%clk 0:02:55]} 10. Bc3 {[%clk 0:02:41]}  Nc5 {[%clk 0:02:49]} 11. Qb2 {[%clk 0:02:16]}  Na4 {[%clk 0:02:42]} 12. Qb3 {[%clk 0:01:48]}  Nxc3 {[%clk 0:02:40]} 13. Nxc3 {[%clk 0:01:40]}  Bf5 {[%clk 0:02:27]} 14. d4 {[%clk 0:01:24]}  Ne4 {[%clk 0:02:21]} 15. Nxe4 {[%clk 0:01:23]}  Bxe4 {[%clk 0:02:22]} 16. e3 {[%clk 0:01:17]}  c5 {[%clk 0:01:57]} 17. dxc5 {[%clk 0:00:54]}  dxc5 {[%clk 0:01:56]} 18. b5 {[%clk 0:00:32]}  Bxa1 {[%clk 0:01:55]} 19. Rxa1 {[%clk 0:00:33]}  a4 {[%clk 0:01:56]} 20. Qb2 {[%clk 0:00:30]}  Rfd8 {[%clk 0:01:49]} 21. Nd2 {[%clk 0:00:18]}  Bxg2 {[%clk 0:01:49]} 22. Kxg2 {[%clk 0:00:19]}  f5 {[%clk 0:01:39]} 23. Nf3 {[%clk 0:00:19]}  Qf6 {[%clk 0:01:37]} 24. Qxf6 {[%clk 0:00:16]}  exf6 {[%clk 0:01:38]} 25. Kf1 {[%clk 0:00:12]}  b6 {[%clk 0:01:38]} 26. Ke2 {[%clk 0:00:12]}  Rd6 {[%clk 0:01:38]} 27. Rd1 {[%clk 0:00:12]}  Rad8 {[%clk 0:01:38]} 28. Rxd6 {[%clk 0:00:12]}  Rxd6 {[%clk 0:01:39]} 29. Ne1 {[%clk 0:00:12]}  Kf7 {[%clk 0:01:38]} 30. Nd3 {[%clk 0:00:12]}  g5 {[%clk 0:01:37]} 31. Nc1 {[%clk 0:00:12]}  f4 {[%clk 0:01:29]} 32. gxf4 {[%clk 0:00:12]}  gxf4 {[%clk 0:01:30]} 33. Nd3 {[%clk 0:00:09]}  fxe3 {[%clk 0:01:28]} 34. fxe3 {[%clk 0:00:10]}  Ke6 {[%clk 0:01:28]} 35. Nf4+ {[%clk 0:00:10]}  Ke5 {[%clk 0:01:26]} 36. Nd3+ {[%clk 0:00:11]}  Ke4 {[%clk 0:01:24]} 37. Nf2+ {[%clk 0:00:11]}  Kf5 {[%clk 0:01:24]} 38. Nd3 {[%clk 0:00:11]}  Kg4 {[%clk 0:01:22]} 39. Nf4 {[%clk 0:00:11]}  h5 {[%clk 0:01:19]} 40. Nd5 {[%clk 0:00:09]}  Kh3 {[%clk 0:01:17]} 41. Nf4+ {[%clk 0:00:06]}  Kg4 {[%clk 0:01:17]} 42. Nd5 {[%clk 0:00:06]}  h4 {[%clk 0:01:17]} 43. Nf4 {[%clk 0:00:06]}  f5 {[%clk 0:01:17]} 44. h3+ {[%clk 0:00:04]}  Kg3 {[%clk 0:01:17]} 45. Ke1 {[%clk 0:00:04]}  Kf3 {[%clk 0:01:16]} 46. Nd5 {[%clk 0:00:04]}  Re6 {[%clk 0:01:12]} 47. Kd2 {[%clk 0:00:05]}  Kg3 {[%clk 0:01:10]} 48. Nf4 {[%clk 0:00:04]}  Rd6+ {[%clk 0:01:10]} 49. Ke2 {[%clk 0:00:05]}  Rd8 {[%clk 0:01:06]} 50. Ke1 {[%clk 0:00:05]}  Kf3 {[%clk 0:01:04]} 51. Nd5 {[%clk 0:00:05]}  Rg8 {[%clk 0:00:53]} 52. Nxb6 {[%clk 0:00:04]}  Kxe3 {[%clk 0:00:53]} 53. Nd5+ {[%clk 0:00:04]}  Kd3 {[%clk 0:00:54]} 54. b6 {[%clk 0:00:04]}  Kxc4 {[%clk 0:00:53]} 55. Ne7 {[%clk 0:00:04]}  Rb8 {[%clk 0:00:52]} 56. Nxf5 {[%clk 0:00:04]}  Rxb6 {[%clk 0:00:51]} 57. Nxh4 {[%clk 0:00:04]}  Rb3 {[%clk 0:00:51]} 58. Kd2 {[%clk 0:00:04]}  Rxh3 {[%clk 0:00:51]} 59. Nf5 {[%clk 0:00:05]}  Rxa3 {[%clk 0:00:51]} 60. Kc2 {[%clk 0:00:05]}  Rf3 {[%clk 0:00:50]} 61. Nd6+ {[%clk 0:00:05]}  Kd5 {[%clk 0:00:51]} 62. Nb5 {[%clk 0:00:04]}  Rf2+ {[%clk 0:00:50]} 63. Kc3 {[%clk 0:00:04]}  Rf3+ {[%clk 0:00:51]} 64. Kc2 {[%clk 0:00:04]}  c4 {[%clk 0:00:51]} 65. Nc3+ {[%clk 0:00:04]}  Kd4 {[%clk 0:00:52]} 66. Nxa4 {[%clk 0:00:05]}  Rf2+ {[%clk 0:00:53]} 67. Kc1 {[%clk 0:00:05]}  c3 {[%clk 0:00:51]} 68. Nb6 {[%clk 0:00:04]}  Kd3 {[%clk 0:00:51]} 69. Kb1 {[%clk 0:00:04]}  Rf1+ {[%clk 0:00:50]} 70. Ka2 {[%clk 0:00:05]}  c2 {[%clk 0:00:50]} 71. Nd5 {[%clk 0:00:05]}  c1=Q {[%clk 0:00:46]} 72. Nb4+ {[%clk 0:00:05]}  Kd4 {[%clk 0:00:44]} 73. Nc6+ {[%clk 0:00:03]}  Qxc6 {[%clk 0:00:44]} 74. Kb3 {[%clk 0:00:03]}  Rb1+ {[%clk 0:00:43]} 75. Ka2 {[%clk 0:00:03]}  Qc2+ {[%clk 0:00:43]} 0-1


[Site "https://www.chess.com"]